bitfinex-derivatives/quotes_SOLF0:USTF0_20250318
["timestamp","ask_amount","ask_price","bid_price","bid_amount"]
[1742273745361,0.06168701,123.9,123.88,8.0729]
[1742273745557,0.06168701,123.9,123.87,0.06115697]
[1742273745955,0.06168701,123.9,123.89,27.04084208]
[1742273746756,29.58,123.95,123.89,18.96854208]
[1742273746955,29.58,123.95,123.91,18.96854208]
[1742273747157,29.58,123.95,123.91,48.54854208]
[1742273747356,29.58,123.95,123.93,8.0693]
[1742273747751,29.64113903,123.95,123.93,8.12429523]
[1742273747958,0.06113903,123.95,123.94,8.069]
[1742273748359,0.06113903,123.95,123.93,0.05499523]
[1742273751164,29.58,123.94,123.93,0.05499523]
[1742273751366,33.79006488,123.94,123.9,278.54]
[1742273751664,8.07,123.93,123.87,37.6533]
[1742273751863,8.07,123.93,123.87,29.58]
[1742273752358,37.6493,123.94,123.87,29.58]
[1742273752554,0.05622927,123.91,123.89,0.05566021]
[1742273754765,8.12732927,123.91,123.89,0.05566021]
[1742273757466,8.0716,123.9,123.89,0.05566021]
[1742273757664,12.28152728,123.9,123.89,0.05566021]
[1742273766077,4.20992728,123.9,123.83,48.54854208]
[1742273766265,4.20992728,123.89,123.83,48.54854208]
[1742273766469,4.20992728,123.88,123.84,8.0754]
[1742273766669,4.20992728,123.88,123.83,48.54854208]
[1742273767071,8.0732,123.88,123.83,56.62434208]
[1742273767277,0.05684255,123.87,123.84,0.05817954]
[1742273768375,0.05684255,123.87,123.84,8.13367954]
[1742273768773,0.05684255,123.87,123.84,0.05817954]
[1742273768966,0.05684255,123.87,123.84,8.13337954]
[1742273770175,0.05684255,123.87,123.85,8.0748]
[1742273771678,44.53612737,123.97,123.86,29.58]
[1742273771978,35.91935051,123.96,123.9,18.96854208]
[1742273772181,4.21305051,123.95,123.9,18.96854208]
[1742273772381,4.21305051,123.94,123.9,18.96854208]
[1742273772580,31.7063,123.96,123.9,18.96854208]
[1742273772783,4.21311274,123.95,123.92,8.07]
[1742273772982,0.05649808,123.94,123.92,8.1243967]
[1742273773581,0.05649808,123.94,123.92,0.0543967]
[1742273775485,0.05649808,123.94,123.92,8.1244967]
[1742273778585,0.05649808,123.94,123.92,0.0543967]
[1742273780888,0.05649808,123.94,123.92,8.1242967]
[1742273781777,0.05649808,123.94,123.93,8.0697]
[1742273784192,0.05649808,123.94,123.92,56.67293878]
[1742273784391,0.05649808,123.94,123.92,48.60293878]
[1742273784792,0.05649808,123.94,123.93,8.0697]
[1742273785692,29.56,123.99,123.95,8.0679]
[1742273785994,4.21243586,123.98,123.95,8.0679]
[1742273786586,12.27893586,123.98,123.94,18.96854208]
[1742273786794,8.12180617,123.98,123.95,0.05402493]
[1742273788390,8.12180617,123.98,123.95,8.12222493]
[1742273789396,8.0671,123.97,123.95,0.05402493]
[1742273789794,0.05530617,123.98,123.95,0.05402493]
[1742273789991,12.3313959,123.98,123.95,0.05402493]
[1742273790290,8.12190617,123.98,123.95,8.12222493]
[1742273791199,8.12190617,123.98,123.96,12.14363408]
[1742273792894,0.05530617,123.98,123.96,12.14363408]
[1742273793198,0.05530617,123.98,123.96,20.21123408]
[1742273793398,0.05530617,123.98,123.96,12.14363408]
[1742273793991,0.05530617,123.98,123.96,20.21123408]
[1742273794396,0.05530617,123.98,123.97,20.21073408]
[1742273795193,0.05530617,123.98,123.97,12.14363408]
[1742273797994,0.05530617,123.98,123.97,20.21073408]
[1742273800401,0.05530617,123.98,123.97,12.14363408]
[1742273801303,0.05530617,123.98,123.97,20.21073408]
[1742273803697,0.05530617,123.98,123.97,12.14363408]
[1742273805503,0.05530617,123.98,123.97,20.21073408]
[1742273807103,8.0648,124.01,123.98,8.0662]
[1742273807304,8.0648,124.01,124.0,12.14363408]
[1742273807604,8.0648,124.01,123.99,12.14363408]
[1742273808305,8.11635038,124.01,123.99,12.20318091]
[1742273814012,41.81914621,124.0,123.99,0.05954683]
[1742273814209,43.86764621,124.0,123.99,0.05954683]
[1742273814414,35.80254621,124.0,123.96,12.14363408]
[1742273814715,8.0671,123.97,123.96,12.14363408]
[1742273816113,12.29064115,123.97,123.96,12.14363408]
[1742273816613,8.0677,123.96,123.95,278.43943319]
[1742273816812,8.0677,123.96,123.95,290.58306727]
[1742273817215,8.0673,123.97,123.95,290.58306727]
[1742273818120,8.0673,123.97,123.96,12.14363408]
[1742273818321,12.29188778,123.97,123.96,12.14363408]
[1742273818816,4.22458778,123.97,123.96,12.14363408]
[1742273820321,0.05430974,123.98,123.96,12.14363408]
[1742273820518,0.05430974,123.98,123.97,12.14363408]
[1742273820720,4.28089286,123.98,123.97,12.14363408]
[1742273821418,0.05430974,123.98,123.97,12.14363408]
[1742273824323,0.05430974,123.98,123.97,20.21073408]
[1742273828227,8.0648,124.01,123.98,8.0659]
[1742273828429,8.0648,124.01,124.0,12.14363408]
[1742273828817,8.064,124.02,124.0,12.14363408]
[1742273829021,8.064,124.02,124.01,12.14363408]
[1742273831326,10.29566188,124.03,124.01,12.14363408]
[1742273834928,8.11636188,124.03,124.01,12.14363408]
[1742273838133,8.0638,124.02,124.01,12.14363408]
[1742273838730,8.0638,124.02,124.0,0.050981]
[1742273839034,8.0645,124.01,124.0,0.050981]
[1742273839435,12.29856244,124.01,124.0,0.050981]
[1742273840632,8.0671,123.97,123.96,41.68363408]
[1742273840827,12.30206802,123.97,123.96,41.68363408]
[1742273841033,4.23496802,123.97,123.9,278.26]
[1742273841232,4.23496802,123.96,123.93,12.14363408]
[1742273841539,4.23496802,123.95,123.93,12.14363408]
[1742273841725,4.23496802,123.94,123.93,12.14363408]
[1742273841930,4.23496802,123.94,123.93,12.20045529]
[1742273842728,12.30396802,123.94,123.93,0.05682121]
[1742273844132,16.3786021,123.94,123.9,278.26]
[1742273844329,33.77496802,123.93,123.9,278.26]
[1742273844534,4.23496802,123.92,123.88,12.14363408]
[1742273844730,8.072,123.9,123.88,12.14363408]
[1742273844934,29.54,123.93,123.88,12.14363408]
[1742273845134,8.0723,123.89,123.88,12.14363408]
[1742273845336,0.05956041,123.92,123.89,0.05860834]
[1742273845641,4.22249185,123.91,123.89,0.05860834]
[1742273845840,8.0714,123.91,123.89,0.05860834]
[1742273846039,8.0714,123.91,123.89,12.20224242]
[1742273849949,8.13016041,123.92,123.89,12.20224242]
[1742273850143,0.05956041,123.92,123.89,12.20224242]
[1742273850342,0.05956041,123.92,123.91,12.14363408]
[1742273850838,0.05956041,123.92,123.91,20.21463408]
[1742273858753,8.0686,123.95,123.92,8.0703]
[1742273859050,8.068,123.96,123.94,12.14363408]
[1742273859251,29.54,123.97,123.94,12.14363408]
[1742273859755,8.0683,123.96,123.94,12.14363408]
[1742273860053,8.0683,123.96,123.94,12.20111873]
[1742273861455,8.11902385,123.97,123.94,12.20111873]
[1742273861756,8.11902385,123.97,123.94,20.27011873]
[1742273862357,0.05172385,123.97,123.96,12.14363408]
[1742273862859,0.05172385,123.97,123.96,20.21133408]
[1742273866964,0.05172385,123.97,123.96,49.75133408]
[1742273868762,8.0648,124.01,123.97,8.0665]
[1742273868958,8.0648,124.01,123.99,12.14363408]
[1742273869755,8.1172032,124.01,123.99,12.20360082]
[1742273870161,0.0524032,124.01,124.0,12.14363408]
[1742273874270,8.1169032,124.01,124.0,12.14363408]
[1742273876270,8.1169032,124.01,123.99,41.72360082]
[1742273876767,8.0651,124.0,123.99,41.72360082]
[1742273879073,8.1171032,124.01,123.99,41.72360082]
[1742273879371,8.1171032,124.01,124.0,12.14363408]
[1742273880975,8.0651,124.0,123.99,41.72360082]
[1742273881182,8.0651,124.0,123.99,12.20360082]
[1742273882978,8.0651,124.0,123.99,0.05996674]
[1742273888188,37.6372032,124.01,123.99,0.05996674]
[1742273888379,0.0524032,124.01,123.99,0.05996674]
[1742273888578,0.0524032,124.01,124.0,12.14363408]
[1742273891289,0.0524032,124.01,124.0,20.20873408]
[1742273891779,0.0524032,124.01,124.0,12.14363408]
[1742273896094,8.1169032,124.01,124.0,12.14363408]
[1742273896295,0.0524032,124.01,124.0,12.14363408]
[1742273897098,10.0702,124.05,124.01,8.064]
[1742273897396,2.008,124.05,124.03,12.14363408]
[1742273898098,2.0683318,124.05,124.03,0.05530424]
[1742273898296,14.21196588,124.05,123.99,29.5]
[1742273898498,29.5,124.04,124.0,12.14363408]
[1742273899199,8.0641,124.02,124.0,12.14363408]
[1742273899593,0.05569993,124.02,124.0,0.06139692]
[1742273900494,0.05569993,124.02,124.0,12.205031]
[1742273900700,8.11989993,124.02,124.0,12.205031]
[1742273902467,8.11989993,124.02,124.0,0.06139692]
[1742273902468,8.0645,124.01,124.0,0.06139692]
[1742273903497,37.5645,124.01,124.0,0.06139692]
[1742273903695,8.0658,123.99,123.98,278.34]
[1742273903896,29.5,124.01,123.97,12.14363408]
[1742273904100,41.64363408,124.01,123.97,12.14363408]
[1742273904901,8.0658,123.99,123.98,0.05420205]
[1742273905102,12.20260679,124.0,123.95,12.14363408]
[1742273905302,29.5,123.99,123.95,12.14363408]
[1742273905601,8.0677,123.96,123.95,12.14363408]
[1742273907503,8.11997265,123.97,123.95,12.14363408]
[1742273909500,0.05257265,123.97,123.95,12.14363408]
[1742273909805,0.05257265,123.97,123.96,12.14363408]
[1742273910103,0.05257265,123.97,123.95,12.14363408]
[1742273910300,0.05257265,123.97,123.94,290.44187787]
[1742273910507,0.05257265,123.97,123.94,278.29824379]
[1742273910703,8.0684,123.95,123.94,278.29824379]
[1742273911205,8.0684,123.95,123.94,0.05824379]
[1742273911904,4.22915767,123.95,123.94,12.20187787]
[1742273912506,29.5,123.96,123.94,12.20187787]
[1742273912904,37.5677,123.96,123.94,12.20187787]
[1742273916206,8.0684,123.95,123.94,12.20187787]
[1742273916605,0.05257265,123.97,123.94,41.70187787]
[1742273916808,0.05257265,123.97,123.96,12.14363408]
[1742273918605,8.11967265,123.97,123.96,12.14363408]
[1742273918808,12.34369787,123.97,123.96,12.14363408]
[1742273919005,8.11967265,123.97,123.96,12.14363408]
[1742273919210,12.34357229,123.97,123.96,12.14363408]
[1742273920208,12.34313484,123.97,123.96,12.14363408]
[1742273921513,8.0684,123.95,123.94,0.05824379]
[1742273921812,12.29098034,123.95,123.94,0.05824379]
[1742273922404,12.29044764,123.95,123.94,0.05824379]
[1742273923517,4.22204764,123.95,123.94,12.20187787]
[1742273924017,8.12007265,123.97,123.94,12.20187787]
[1742273924219,4.22089072,123.96,123.95,12.14363408]
[1742273925619,0.05257265,123.97,123.95,12.14363408]
[1742273925815,8.12027265,123.97,123.95,12.14363408]
[1742273932822,0.05257265,123.97,123.95,12.14363408]
[1742273933024,4.27429806,123.97,123.95,20.21183408]
[1742273933224,0.05257265,123.97,123.95,12.14363408]
[1742273933423,0.05257265,123.97,123.95,290.50363408]
[1742273933617,0.05257265,123.97,123.96,8.0677]
[1742273934324,8.0648,124.01,123.98,8.0663]
[1742273934523,8.0648,124.01,124.0,12.14363408]
[1742273934724,37.5642,124.02,124.0,12.14363408]
[1742273935322,8.0642,124.02,124.0,12.14363408]
[1742273935527,8.1223056,124.02,124.0,12.20033057]
[1742273936328,8.1223056,124.02,124.0,0.05669649]
[1742273937123,0.0581056,124.02,124.0,12.20033057]
[1742273938932,0.0581056,124.02,124.0,20.26513057]
[1742273939234,0.0581056,124.02,124.01,12.14363408]
[1742273941027,8.1219056,124.02,124.0,12.20033057]
[1742273941633,8.0645,124.01,124.0,12.20033057]
[1742273942127,8.0645,124.01,124.0,0.05669649]
[1742273946442,12.23063873,124.01,124.0,0.05669649]
[1742273948153,12.23063873,124.01,124.0,12.20033057]
[1742273948343,8.0645,124.01,124.0,12.20033057]
[1742273948544,12.23035638,124.01,124.0,12.20033057]
[1742273951250,12.23035638,124.01,124.0,0.05669649]
[1742273952251,8.0645,124.01,124.0,0.05669649]
[1742273956350,12.22895655,124.01,124.0,0.05669649]
[1742273958852,8.0645,124.01,124.0,0.05669649]
[1742273959065,12.22987544,124.01,124.0,0.05669649]
[1742273959956,4.16537544,124.01,124.0,0.05669649]
[1742273961353,0.0581056,124.02,124.0,0.05669649]
[1742273961558,0.0581056,124.02,124.01,7.97813284]
[1742273962151,8.1219056,124.02,124.01,7.97813284]
[1742273962358,0.0581056,124.02,124.01,7.97813284]
[1742273964857,0.0581056,124.02,124.01,37.43813284]
[1742273967462,0.0581056,124.02,124.01,45.50263284]
[1742273967666,0.0581056,124.02,124.01,37.43813284]
[1742273972466,2.2064,124.07,124.01,37.43813284]
[1742273972662,2.2064,124.07,124.06,12.14363408]
[1742273973474,8.0614,124.06,124.05,12.14363408]
[1742273973673,12.16355,124.06,124.05,12.20512897]
[1742273974273,12.16233636,124.06,124.05,12.20512897]
[1742273976273,12.16298618,124.06,124.05,12.20512897]
[1742273977370,12.16324986,124.06,124.05,12.20512897]
[1742273982675,4.10184986,124.06,124.05,41.64512897]
[1742273982976,0.05760533,124.08,124.05,12.20512897]
[1742273983176,12.15904148,124.07,124.06,12.14363408]
[1742273983376,4.09824148,124.07,124.06,12.14363408]
[1742273984078,8.11810533,124.08,124.06,12.14363408]
[1742273985987,12.15627878,124.07,124.06,12.14363408]
[1742273986287,8.0606,124.07,124.06,12.14363408]
[1742273986580,12.15575475,124.07,124.06,12.14363408]
[1742273987082,8.0606,124.07,124.06,12.14363408]
[1742273987976,0.05760533,124.08,124.06,12.14363408]
[1742273988280,0.05760533,124.08,124.07,12.14363408]
[1742273991982,8.11750533,124.08,124.07,12.14363408]
[1742273992179,4.14876741,124.08,124.06,12.14363408]
[1742273992374,0.05760533,124.08,124.06,12.14363408]
[1742273992980,8.0608,124.07,124.06,12.14363408]
[1742274000089,8.11790533,124.08,124.06,12.14363408]
[1742274000287,0.05760533,124.08,124.06,12.14363408]
[1742274000790,8.11760533,124.08,124.06,12.14363408]
[1742274003193,8.0606,124.07,124.06,12.14363408]
[1742274003889,8.11790533,124.08,124.06,12.14363408]
[1742274005791,0.05760533,124.08,124.06,12.14363408]
[1742274010296,8.11760533,124.08,124.06,12.14363408]
[1742274010500,0.05760533,124.08,124.06,12.14363408]
[1742274013104,4.10377201,124.07,124.06,12.14363408]
[1742274013701,12.16487201,124.07,124.05,290.34512897]
[1742274013903,4.10504778,124.06,124.05,278.20149489]
[1742274014100,4.10504778,124.06,124.05,0.06149489]
[1742274014302,12.16624778,124.06,124.05,0.06149489]
[1742274016007,12.16608539,124.06,124.05,0.06149489]
[1742274016500,41.58608539,124.06,124.05,0.06149489]
[1742274017804,41.58620743,124.06,124.05,0.06149489]
[1742274019703,37.4812,124.06,124.05,0.06149489]
[1742274019906,41.58686829,124.06,124.05,0.06149489]
[1742274022601,4.10566829,124.06,124.05,12.20512897]
[1742274023010,4.10594925,124.06,124.05,12.20512897]
[1742274023308,0.05760533,124.08,124.05,41.62512897]
[1742274023509,0.05760533,124.08,124.07,12.14363408]
[1742274024908,0.05760533,124.08,124.07,20.20423408]
[1742274025908,44.48360376,124.12,124.07,319.70363408]
[1742274026107,29.42,124.13,124.11,12.14363408]
[1742274026307,8.0573,124.12,124.11,12.14363408]
[1742274027907,8.11792436,124.13,124.11,12.14363408]
[1742274028113,8.11792436,124.13,124.1,12.19978518]
[1742274028304,8.0577,124.12,124.1,12.19978518]
[1742274029306,8.058,124.11,124.1,0.0561511]
[1742274031013,37.458,124.11,124.1,0.0561511]
[1742274032106,29.4,124.11,124.1,0.0561511]
[1742274032810,8.0576,124.12,124.1,0.0561511]
[1742274033006,37.51822436,124.13,124.1,0.0561511]
[1742274033206,0.06122436,124.13,124.12,12.14363408]
[1742274040917,27.44913111,124.21,124.12,12.14363408]
[1742274041215,31.4258,124.21,124.16,12.14363408]
[1742274041422,31.4258,124.21,124.17,12.14363408]
[1742274041824,8.0531,124.19,124.17,12.14363408]
[1742274042025,8.0531,124.19,124.18,0.06134894]
[1742274042720,8.0531,124.19,124.18,12.20498302]
[1742274043425,8.10617994,124.2,124.18,12.20498302]
[1742274043727,8.10617994,124.2,124.19,12.14363408]
[1742274051636,0.05377994,124.2,124.19,12.14363408]
[1742274059936,0.05377994,124.2,124.19,20.19643408]
[1742274060446,0.05377994,124.2,124.19,12.14363408]
[1742274060736,8.10587994,124.2,124.19,12.14363408]
[1742274062641,0.05377994,124.2,124.19,12.14363408]
[1742274063739,0.05377994,124.2,124.19,20.19643408]
[1742274063939,0.05377994,124.2,124.19,12.14363408]
[1742274065544,8.10587994,124.2,124.19,12.14363408]
[1742274066433,0.05377994,124.2,124.19,12.14363408]
[1742274069545,8.10587994,124.2,124.19,12.14363408]
[1742274070540,0.05377994,124.2,124.19,12.14363408]
[1742274070941,8.10587994,124.2,124.19,12.14363408]
[1742274071142,0.05377994,124.2,124.19,12.14363408]
[1742274072945,2.1261,124.26,124.19,12.14363408]
[1742274073148,29.36,124.25,124.22,12.14363408]
[1742274073347,8.0501,124.24,124.23,12.14363408]
[1742274073648,8.0501,124.24,124.22,12.14363408]
[1742274074046,8.0502,124.23,124.22,12.14363408]
[1742274074249,8.0502,124.23,124.22,0.05699676]
[1742274075249,8.0521,124.2,124.19,12.14363408]
[1742274075446,29.36,124.21,124.16,277.84]
[1742274075643,29.36,124.2,124.17,12.14363408]
[1742274076450,29.41108843,124.2,124.17,12.20113467]
[1742274076950,29.41108843,124.2,124.17,0.05750059]
[1742274077144,29.41108843,124.2,124.17,12.20113467]
[1742274077344,29.41108843,124.2,124.18,12.14363408]
[1742274077748,29.41108843,124.2,124.17,12.20113467]
[1742274078449,8.0533,124.19,124.17,12.20113467]
[1742274080152,29.41108843,124.2,124.18,12.14363408]
[1742274080653,8.0528,124.19,124.18,12.14363408]
[1742274080854,8.0528,124.19,124.17,12.20113467]
[1742274083354,37.46358843,124.2,124.17,12.20113467]
[1742274083550,29.41108843,124.2,124.18,12.14363408]
[1742274084454,37.46348843,124.2,124.18,12.14363408]
[1742274085654,0.05108843,124.2,124.18,12.14363408]
[1742274085854,29.39108843,124.2,124.18,12.14363408]
[1742274086653,0.05108843,124.2,124.19,12.14363408]
[1742274087956,0.05108843,124.2,124.18,12.14363408]
[1742274088458,0.05108843,124.2,124.19,12.14363408]
[1742274088860,0.05108843,124.2,124.19,20.19643408]
[1742274089360,0.05108843,124.2,124.19,12.14363408]
[1742274089858,0.05108843,124.2,124.19,20.19643408]
[1742274090461,0.05108843,124.2,124.19,12.14363408]
[1742274091359,0.05108843,124.2,124.18,12.14363408]
[1742274091654,0.05108843,124.2,124.19,12.14363408]
[1742274094657,0.05108843,124.2,124.19,20.19643408]
[1742274096057,0.05108843,124.2,124.19,12.14363408]
[1742274096657,0.05108843,124.2,124.19,20.19643408]
[1742274100165,8.0506,124.23,124.2,8.052]
[1742274100465,8.0506,124.23,124.22,12.14363408]
[1742274101862,37.44102466,124.24,124.22,12.14363408]
[1742274102567,29.39122466,124.24,124.22,12.14363408]
[1742274102971,0.05122466,124.24,124.22,12.14363408]
[1742274103268,0.05122466,124.24,124.23,12.14363408]
[1742274104177,0.05122466,124.24,124.23,20.19383408]
[1742274104367,0.05122466,124.24,124.23,12.14363408]
[1742274105471,0.05122466,124.24,124.23,20.19383408]
[1742274109472,0.05122466,124.24,124.23,12.14363408]
[1742274118878,4.0694,124.31,124.23,319.20363408]
[1742274119076,29.32,124.3,124.26,12.14363408]
[1742274119578,29.32,124.3,124.27,8.0475]
[1742274119975,29.32,124.3,124.26,12.14363408]
[1742274120177,29.37404961,124.3,124.28,12.14363408]
[1742274120373,29.37404961,124.3,124.27,0.05690808]
[1742274120374,0.05404961,124.3,124.29,12.14363408]
[1742274121970,0.05404961,124.3,124.29,20.18993408]
[1742274123081,29.32,124.33,124.29,49.50993408]
[1742274123283,29.32,124.33,124.32,12.14363408]
[1742274124782,29.32,124.33,124.31,12.19704294]
[1742274124982,29.32,124.33,124.31,0.05340886]
[1742274125475,8.0444,124.32,124.31,0.05340886]
[1742274125872,41.46363408,124.33,124.28,12.14363408]
[1742274126381,41.46363408,124.33,124.29,12.14363408]
[1742274126681,8.0447,124.32,124.29,12.14363408]
[1742274126885,29.3,124.31,124.3,12.14363408]
[1742274127782,0.06003105,124.32,124.3,12.14363408]
[1742274128683,8.10443105,124.32,124.3,12.14363408]
[1742274129284,0.06003105,124.32,124.3,12.14363408]
[1742274129888,8.10443105,124.32,124.31,12.14363408]
[1742274130187,0.06003105,124.32,124.3,12.14363408]
[1742274130482,0.06003105,124.32,124.29,12.19936238]
[1742274130687,12.20366513,124.32,124.29,0.0557283]
[1742274130876,14.26436513,124.32,124.29,0.0557283]
[1742274131081,16.40546513,124.32,124.29,0.0557283]
[1742274132288,8.0456,124.3,124.29,0.0557283]
[1742274132487,37.3456,124.3,124.29,0.0557283]
[1742274136388,8.0456,124.3,124.29,12.19936238]
[1742274137194,8.0456,124.3,124.29,0.0557283]
[1742274137797,37.3456,124.3,124.29,0.0557283]
[1742274139590,8.0454,124.31,124.29,12.19936238]
[1742274139792,8.0454,124.31,124.3,12.14363408]
[1742274139985,0.06003105,124.32,124.3,12.14363408]
[1742274140190,0.06003105,124.32,124.31,12.14363408]
[1742274140596,0.06003105,124.32,124.29,12.19936238]
[1742274140994,29.3,124.31,124.29,0.0557283]
[1742274142000,8.0456,124.3,124.29,0.0557283]
[1742274142395,8.0456,124.3,124.29,12.19936238]
[1742274142701,29.3,124.31,124.29,12.19936238]
[1742274143090,8.0456,124.3,124.29,12.19936238]
[1742274144197,37.3453,124.31,124.29,12.19936238]
[1742274144399,37.3453,124.31,124.3,12.14363408]
[1742274144796,8.0453,124.31,124.3,12.14363408]
[1742274146006,8.10473105,124.32,124.3,12.14363408]
[1742274146202,0.06003105,124.32,124.3,12.14363408]
[1742274146606,8.10443105,124.32,124.31,12.14363408]
[1742274150007,8.045,124.31,124.3,12.14363408]
[1742274150208,0.06003105,124.32,124.29,0.0557283]
[1742274150908,29.28,124.31,124.29,0.0557283]
[1742274151208,8.0456,124.3,124.29,0.0557283]
[1742274178025,29.28,124.31,124.29,0.0557283]
[1742274178026,37.3253,124.31,124.29,0.0557283]
[1742274178226,29.28,124.31,124.29,0.0557283]
[1742274178427,2.27193105,124.32,124.29,0.0557283]
[1742274178628,29.28,124.31,124.29,0.0557283]
[1742274179930,8.0456,124.3,124.29,0.0557283]
[1742274194127,20.18923408,124.3,124.29,2.83e-05]
[1742274194334,8.0489,124.25,124.24,14.27593408]
[1742274194536,8.0489,124.25,124.24,12.14363408]
[1742274195030,8.0489,124.25,124.23,289.88363408]
[1742274195337,8.11074716,124.25,124.24,12.14363408]
[1742274196731,8.0495,124.24,124.23,289.94213957]
[1742274200434,8.0495,124.24,124.23,12.20213957]
[1742274211244,0.06184716,124.25,124.23,12.20213957]
[1742274211544,8.0473,124.28,124.24,20.19283408]
[1742274211843,29.26,124.29,124.26,12.14363408]
[1742274212641,8.0476,124.27,124.26,12.20345457]
[1742274213446,8.0472,124.28,124.26,12.20345457]
[1742274213648,8.0472,124.28,124.27,12.14363408]
[1742274217049,0.06005165,124.29,124.27,12.14363408]
[1742274217246,0.06005165,124.29,124.28,12.14363408]
[1742274217646,8.10645165,124.29,124.28,12.14363408]
[1742274222856,8.047,124.28,124.27,12.14363408]
[1742274225851,0.06005165,124.29,124.27,12.14363408]
[1742274226062,0.06005165,124.29,124.28,12.14363408]
[1742274226664,0.06005165,124.29,124.28,20.19053408]
[1742274229565,37.284,124.33,124.28,12.14363408]
[1742274229765,37.284,124.33,124.31,12.14363408]
[1742274230558,37.284,124.33,124.31,12.20173282]
[1742274230768,37.33625691,124.33,124.31,12.20173282]
[1742274230969,37.33625691,124.33,124.31,20.24643282]
[1742274231867,0.05225691,124.33,124.32,8.0444]
[1742274232065,0.05225691,124.33,124.32,20.18803408]
[1742274232369,12.14363408,124.38,124.32,12.14363408]
[1742274232370,29.24,124.36,124.32,12.14363408]
[1742274232568,29.24,124.36,124.35,12.14363408]
[1742274232768,29.24,124.36,124.34,12.14363408]
[1742274233073,29.24,124.36,124.32,12.14363408]
[1742274233573,8.09829206,124.35,124.33,0.05677907]
[1742274237378,0.05549206,124.35,124.33,12.20041315]
[1742274237777,0.05549206,124.35,124.33,20.24361315]
[1742274239071,0.05549206,124.35,124.34,12.14363408]
[1742274241974,0.05549206,124.35,124.33,12.20041315]
[1742274243075,0.05549206,124.35,124.33,0.05677907]
[1742274243076,41.38363408,124.34,124.33,0.05677907]
[1742274243782,49.42673408,124.34,124.33,0.05677907]
[1742274244377,8.045,124.31,124.3,12.14363408]
[1742274245278,8.045,124.31,124.29,12.14363408]
[1742274245479,8.09721249,124.31,124.29,12.2046415]
[1742274245876,0.05221249,124.31,124.3,12.14363408]
[1742274246073,0.05221249,124.31,124.29,12.2046415]
[1742274246281,0.05221249,124.31,124.29,0.06100742]
[1742274247986,8.0456,124.3,124.29,0.06100742]
[1742274253283,37.2656,124.3,124.29,0.06100742]
[1742274254283,49.40923408,124.3,124.29,0.06100742]
[1742274254682,41.36363408,124.3,124.23,277.58]
[1742274254878,12.14363408,124.29,124.24,12.14363408]
[1742274255082,12.14363408,124.28,124.23,277.58]
[1742274255279,29.22,124.27,124.23,277.58]
[1742274255489,8.0484,124.26,124.23,277.58]
[1742274255690,29.22,124.27,124.23,277.58]
[1742274255887,0.05687636,124.26,124.23,277.63333249]
[1742274256186,8.10557636,124.26,124.23,277.63333249]
[1742274256392,0.05687636,124.26,124.23,277.63333249]
[1742274256786,8.0492,124.25,124.23,289.77696657]
[1742274257590,8.10527636,124.26,124.23,289.77696657]
[1742274257785,0.05687636,124.26,124.25,12.14363408]
[1742274258786,29.22,124.29,124.25,12.14363408]
[1742274258991,29.22,124.29,124.28,12.14363408]
[1742274259290,8.046,124.3,124.28,12.14363408]
[1742274259591,8.0452,124.31,124.29,12.14363408]
[1742274259787,8.0452,124.31,124.3,12.14363408]
[1742274259986,8.09716694,124.31,124.3,12.14363408]
[1742274260579,8.0456,124.3,124.29,12.19676855]
[1742274260779,8.0456,124.3,124.29,0.05313447]
[1742274264787,8.09726694,124.31,124.29,0.05313447]
[1742274265291,8.09726694,124.31,124.29,12.19676855]
[1742274268094,8.0456,124.3,124.29,12.19676855]
[1742274268295,8.0456,124.3,124.29,0.05313447]
[1742274281113,0.05196694,124.31,124.29,12.19676855]
[1742274281513,8.09756694,124.31,124.29,12.19676855]
[1742274282013,8.0456,124.3,124.29,0.05313447]
[1742274283909,37.2656,124.3,124.29,0.05313447]
[1742274297529,29.22,124.3,124.29,12.19676855]
[1742274298126,8.09716694,124.31,124.29,12.19676855]
[1742274298939,0.05196694,124.31,124.29,20.24296855]
[1742274299435,0.05196694,124.31,124.3,12.14363408]
[1742274300337,8.09696694,124.31,124.3,12.14363408]
[1742274301036,0.05196694,124.31,124.3,12.14363408]
[1742274301840,8.09696694,124.31,124.3,12.14363408]
[1742274302337,0.05196694,124.31,124.3,12.14363408]
[1742274302735,8.09696694,124.31,124.3,12.14363408]
[1742274302936,8.09696694,124.31,124.29,12.19676855]
[1742274303939,0.05196694,124.31,124.29,12.19676855]
[1742274304140,0.05196694,124.31,124.29,20.24296855]
[1742274304436,0.05196694,124.31,124.3,12.14363408]
[1742274304635,0.05196694,124.31,124.3,20.18923408]
[1742274308442,0.05196694,124.31,124.3,12.14363408]
[1742274310245,8.09696694,124.31,124.3,12.14363408]
[1742274310543,0.05196694,124.31,124.3,12.14363408]